[Event "10th Iberoamericano-ch 2024"]
[Site "Linares"]
[Date "2024.09.26"]
[Round "3.2"]
[White "Leiva, Gianmarco"]
[Black "Salinas Herrera, Pablo"]
[Result "0-1"]
[ECO "C50"]
[WhiteElo "2389"]
[BlackElo "2479"]
[Annotator "RC"]
[PlyCount "77"]
[EventDate "2024.09.25"]
[EventType "swiss"]
[EventCountry "ESP"]
[SourceTitle "playchess.com"]
[Source "ChessBase"]
[SourceQuality "1"]
[TimeControl "5400+30"]

1. e4 {[%emt 0:09:45]} e5 {[%emt 0:00:05]} 2. Nf3 {[%emt 0:00:06]} Nc6 {[%emt 0:00:03]} 3. Bc4 {[%emt 0:00:09]} Bc5 {[%emt 0:00:04]} 4. O-O {[%emt 0:01:07]} Nf6 {[%emt 0:00:05]} 5. d3 {[%emt 0:00:25]} d6 {[%emt 0:00:07]} 6. Bg5 {[%emt 0:09:48]} h6 {[%emt 0:00:07]} 7. Bh4 {[%emt 0:00:04]} a6 {[%emt 0:03:57]} 8. c3 {[%emt 0:01:14]} Ba7 {[%emt 0:00:20]} 9. Nbd2 {[%emt 0:03:18]} g5 {[%emt 0:06:05]} 10. Bg3 {[%emt 0:00:06]} Nd7 {[%emt 0:03:15]} 11. Re1 {[%emt 0:15:00]} Ne7 {[%emt 0:04:54]} 12. Nf1 {[%emt 0:06:53]} Ng6 {[%emt 0:00:39]} 13. h3 {[%emt 0:06:21]} h5 {[%emt 0:10:53]} 14. d4 {[%emt 0:00:42]} g4 {[%emt 0:04:34]} 15. hxg4 {[%emt 0:01:04]} hxg4 {[%emt 0:00:05]} 16. N3h2 {[%emt 0:00:05]} Qg5 {[%emt 0:01:01]} 17. Nxg4 {[%emt 0:02:48]} Ndf8 {[%emt 0:07:57]} 18. Nfe3 {[%emt 0:06:52]} Bd7 {[%emt 0:00:58]} 19. Nf5 {[%emt 0:13:38]} O-O-O {[%emt 0:07:29]} 20. Nge3 {[%emt 0:01:25]} Rh7 {[%emt 0:01:53]} 21. Bd5 {[%emt 0:05:43]} Be6 {[%emt 0:20:17]} 22. dxe5 {[%emt 0:09:11]} Nd7 {[%emt 0:01:51]} 23. Bxe6 {[%emt 0:01:54]} fxe6 {[%emt 0:00:16]} 24. Nd4 {[%emt 0:04:08]} dxe5 {[%emt 0:05:11]} 25. Nxe6 {[%emt 0:00:41]} Rdh8 {[%emt 0:00:21]} 26. Kf1 {[%emt 0:00:01]} Qf6 {[%emt 0:00:05]} 27. Qg4 {[%emt 0:00:59]} Bxe3 {[%emt 0:00:11]} 28. Rxe3 {[%emt 0:00:08]} Rh1+ {[%emt 0:00:05]} 29. Ke2 {[%emt 0:00:03]} Rxa1 {[%emt 0:00:17]} 30. Nc5 {[%emt 0:00:41]} Ngf8 {[%emt 0:01:40]} 31. Rd3 {[%emt 0:01:10]} Qe7 {[%emt 0:00:27]} 32. Rd5 {[%emt 0:00:28]} b6 {[%emt 0:01:54]} 33. Rxe5 {[%emt 0:00:31]} Qf7 {[%emt 0:00:04]} 34. Nd3 {[%emt 0:00:31]} Rg8 {[%emt 0:00:54]} 35. Qf5 {[%emt 0:00:29]} Qxf5 {[%emt 0:02:37]} 36. Rxf5 {[%emt 0:00:26]} Rxa2 {[%emt 0:00:04]} 37. Rf7 {[%emt 0:00:05]} Ne6 {[%emt 0:00:04]} 38. Ke3 {[%emt 0:00:12]} Nec5 {[%emt 0:00:10]} 39. Kd4 0-1

[Event "10th Iberoamericano-ch 2024"]
[Site "Linares"]
[Date "2024.09.26"]
[Round "3.3"]
[White "Flores Quillas, Diego Saul Rodri"]
[Black "Horcajuelo Rocamora, Martin"]
[Result "1-0"]
[ECO "B90"]
[WhiteElo "2451"]
[BlackElo "2394"]
[Annotator "RC"]
[PlyCount "93"]
[EventDate "2024.09.25"]
[EventType "swiss"]
[EventCountry "ESP"]
[SourceTitle "playchess.com"]
[Source "ChessBase"]
[SourceQuality "1"]
[TimeControl "5400+30"]

1. e4 {[%emt 0:06:44]} c5 {[%emt 0:00:02]} 2. Nf3 {[%emt 0:00:06]} d6 {[%emt 0:00:07]} 3. d4 {[%emt 0:00:02]} cxd4 {[%emt 0:00:09]} 4. Nxd4 {[%emt 0:00:03]} Nf6 {[%emt 0:00:11]} 5. Nc3 {[%emt 0:00:07]} a6 {[%emt 0:00:08]} 6. h3 {[%emt 0:00:06]} e5 {[%emt 0:00:07]} 7. Nde2 {[%emt 0:00:07]} h5 {[%emt 0:00:08]} 8. g3 {[%emt 0:00:04]} Be7 {[%emt 0:00:17]} 9. Bg2 {[%emt 0:00:05]} b5 {[%emt 0:00:17]} 10. Nd5 {[%emt 0:00:07]} Nxd5 {[%emt 0:00:06]} 11. Qxd5 {[%emt 0:00:05]} Ra7 {[%emt 0:00:09]} 12. Be3 {[%emt 0:00:05]} Rb7 {[%emt 0:00:07]} 13. O-O {[%emt 0:00:11]} Nd7 {[%emt 0:07:03]} 14. Qd2 {[%emt 0:00:06]} O-O {[%emt 0:01:09]} 15. Nc3 {[%emt 0:05:29]} Nf6 {[%emt 0:00:12]} 16. Rfc1 {[%emt 0:02:36]} Be6 {[%emt 0:04:44]} 17. Nd5 {[%emt 0:00:30]} Nxd5 {[%emt 0:12:42]} 18. exd5 {[%emt 0:00:07]} Bd7 {[%emt 0:03:42]} 19. c4 {[%emt 0:00:23]} bxc4 {[%emt 0:01:10]} 20. Rxc4 {[%emt 0:00:07]} Qb8 {[%emt 0:00:24]} 21. b3 {[%emt 0:01:18]} Rc8 {[%emt 0:02:02]} 22. Rac1 {[%emt 0:00:15]} Rbc7 {[%emt 0:04:33]} 23. Qa5 {[%emt 0:04:42]} Rxc4 {[%emt 0:07:44]} 24. bxc4 {[%emt 0:00:07]} h4 {[%emt 0:07:32]} 25. g4 {[%emt 0:01:33]} f5 {[%emt 0:02:39]} 26. gxf5 {[%emt 0:02:59]} Bxf5 {[%emt 0:00:22]} 27. Qxa6 {[%emt 0:00:59]} Qa8 {[%emt 0:07:12]} 28. Qxa8 {[%emt 0:03:32]} Rxa8 {[%emt 0:00:09]} 29. c5 {[%emt 0:00:43]} Rxa2 {[%emt 0:04:53]} 30. c6 {[%emt 0:00:09]} Rc2 {[%emt 0:02:17]} 31. Rxc2 {[%emt 0:03:24]} Bxc2 {[%emt 0:00:07]} 32. c7 {[%emt 0:00:34]} Bf5 {[%emt 0:00:12]} 33. Bf1 {[%emt 0:00:03]} Bc8 {[%emt 0:00:09]} 34. Be2 {[%emt 0:00:17]} Bxh3 {[%emt 0:04:18]} 35. Ba6 {[%emt 0:00:04]} Kf7 {[%emt 0:04:07]} 36. Kh2 {[%emt 0:00:07]} Bd7 {[%emt 0:00:50]} 37. c8=Q {[%emt 0:00:08]} Bxc8 {[%emt 0:00:03]} 38. Bxc8 {[%emt 0:00:04]} Kf6 {[%emt 0:00:38]} 39. Kh3 {[%emt 0:01:46]} e4 {[%emt 0:00:58]} 40. Bd4+ {[%emt 0:01:24]} Kg5 {[%emt 0:00:05]} 41. Bxg7 {[%emt 0:00:14]} Kf4 {[%emt 0:00:09]} 42. Bd4 {[%emt 0:01:13]} Kf3 {[%emt 0:03:07]} 43. Be3 {[%emt 0:00:24]} Ke2 {[%emt 0:00:07]} 44. Ba6+ {[%emt 0:00:16]} Ke1 {[%emt 0:00:44]} 45. Kg4 {[%emt 0:00:20]} Bf6 {[%emt 0:00:16]} 46. Bc8 {[%emt 0:01:11]} Kf1 {[%emt 0:00:31]} 47. Bf5 {[%emt 0:00:19]} 1-0

[Event "10th Iberoamericano-ch 2024"]
[Site "Linares"]
[Date "2024.09.26"]
[Round "3.4"]
[White "Garrido Outon, Alex"]
[Black "Perea Fruet, Lorenzo"]
[Result "1-0"]
[ECO "C70"]
[WhiteElo "2448"]
[BlackElo "2389"]
[Annotator "RC"]
[PlyCount "105"]
[EventDate "2024.09.25"]
[EventType "swiss"]
[EventCountry "ESP"]
[SourceTitle "playchess.com"]
[Source "ChessBase"]
[SourceQuality "1"]
[TimeControl "5400+30"]

1. e4 {[%emt 0:00:09]} e5 {[%emt 0:00:24]} 2. Nf3 {[%emt 0:00:11]} Nc6 {[%emt 0:00:05]} 3. Bb5 {[%emt 0:00:06]} a6 {[%emt 0:00:03]} 4. Ba4 {[%emt 0:00:06]} Nge7 {[%emt 0:00:04]} 5. c3 {[%emt 0:01:07]} Ng6 {[%emt 0:00:59]} 6. d4 {[%emt 0:00:39]} exd4 {[%emt 0:07:03]} 7. cxd4 {[%emt 0:00:51]} Bb4+ {[%emt 0:01:14]} 8. Nc3 {[%emt 0:00:45]} O-O {[%emt 0:06:55]} 9. O-O {[%emt 0:02:16]} Bxc3 {[%emt 0:05:47]} 10. bxc3 {[%emt 0:00:09]} d6 {[%emt 0:02:09]} 11. Bg5 {[%emt 0:10:45]} f6 {[%emt 0:02:43]} 12. Bd2 {[%emt 0:00:53]} Kh8 {[%emt 0:03:03]} 13. Re1 {[%emt 0:01:44]} Bd7 {[%emt 0:08:16]} 14. c4 {[%emt 0:10:21]} Bg4 {[%emt 0:04:40]} 15. Bxc6 {[%emt 0:00:14]} bxc6 {[%emt 0:00:10]} 16. h3 {[%emt 0:00:04]} Bxf3 {[%emt 0:03:18]} 17. Qxf3 {[%emt 0:00:07]} Qd7 {[%emt 0:04:46]} 18. Bb4 {[%emt 0:17:38]} Rfe8 {[%emt 0:09:31]} 19. Rac1 {[%emt 0:04:02]} f5 {[%emt 0:07:40]} 20. Qxf5 {[%emt 0:09:01]} Qxf5 {[%emt 0:00:25]} 21. exf5 {[%emt 0:00:02]} Nh4 {[%emt 0:00:09]} 22. Ba5 {[%emt 0:15:06]} Nxf5 {[%emt 0:01:38]} 23. Bxc7 {[%emt 0:00:16]} Nxd4 {[%emt 0:01:49]} 24. Rxe8+ {[%emt 0:00:31]} Rxe8 {[%emt 0:00:03]} 25. Rd1 {[%emt 0:00:07]} Ne2+ {[%emt 0:12:06]} 26. Kf1 {[%emt 0:00:41]} Nc3 {[%emt 0:00:44]} 27. Rxd6 {[%emt 0:00:54]} Nxa2 {[%emt 0:00:48]} 28. Rxc6 {[%emt 0:01:08]} Nb4 {[%emt 0:00:07]} 29. Rd6 {[%emt 0:01:14]} Rc8 {[%emt 0:01:23]} 30. Ba5 {[%emt 0:01:43]} Nc6 {[%emt 0:00:09]} 31. Bc3 {[%emt 0:00:03]} Rc7 {[%emt 0:00:21]} 32. Ke2 {[%emt 0:04:11]} Kg8 {[%emt 0:00:07]} 33. Kd3 {[%emt 0:00:07]} Kf7 {[%emt 0:00:37]} 34. c5 {[%emt 0:00:10]} a5 {[%emt 0:00:41]} 35. Kc4 {[%emt 0:00:24]} a4 {[%emt 0:00:04]} 36. Kb5 {[%emt 0:02:53]} Ne7 {[%emt 0:00:54]} 37. Ba5 {[%emt 0:04:39]} Rc8 {[%emt 0:00:26]} 38. Rd4 {[%emt 0:00:14]} a3 {[%emt 0:00:37]} 39. Ra4 {[%emt 0:00:21]} Ke6 {[%emt 0:00:46]} 40. Rxa3 {[%emt 0:00:23]} Nc6 {[%emt 0:00:02]} 41. Bb6 {[%emt 0:02:59]} Kd5 {[%emt 0:00:05]} 42. Rd3+ {[%emt 0:00:04]} Nd4+ {[%emt 0:00:05]} 43. Ka6 {[%emt 0:00:25]} Kc4 {[%emt 0:00:37]} 44. Rg3 {[%emt 0:04:34]} Rf8 {[%emt 0:01:47]} 45. Rxg7 {[%emt 0:01:23]} Rxf2 {[%emt 0:00:06]} 46. c6 {[%emt 0:00:34]} Ra2+ {[%emt 0:00:44]} 47. Kb7 {[%emt 0:00:07]} Nf5 {[%emt 0:00:02]} 48. Rd7 {[%emt 0:00:36]} Re2 {[%emt 0:00:39]} 49. g4 {[%emt 0:01:56]} Ne7 {[%emt 0:00:29]} 50. c7 {[%emt 0:00:04]} Kb5 {[%emt 0:00:47]} 51. Bd4 {[%emt 0:00:06]} Re6 {[%emt 0:00:28]} 52. Rxe7 {[%emt 0:00:43]} Rxe7 {[%emt 0:00:12]} 53. Kb8 {[%emt 0:00:02]} 1-0

[Event "10th Iberoamericano-ch 2024"]
[Site "Linares"]
[Date "2024.09.26"]
[Round "3.12"]
[White "Gines Esteo, Pedro Antonio"]
[Black "Romero Calduch, Sergio"]
[Result "1-0"]
[ECO "A07"]
[WhiteElo "2477"]
[BlackElo "2276"]
[Annotator "RC"]
[PlyCount "58"]
[EventDate "2024.09.25"]
[EventType "swiss"]
[EventCountry "ESP"]
[SourceTitle "playchess.com"]
[Source "ChessBase"]
[SourceQuality "1"]
[TimeControl "5400+30"]

1. Nf3 {[%emt 0:03:57]} d5 {[%emt 0:00:32]} 2. g3 {[%emt 0:00:42]} g6 {[%emt 0:00:37]} 3. Bg2 {[%emt 0:00:29]} Bg7 {[%emt 0:00:10]} 4. c4 {[%emt 0:02:27]} c6 {[%emt 0:01:54]} 5. Qa4 {[%emt 0:01:51]} d4 {[%emt 0:18:52]} 6. d3 {[%emt 0:01:41]} Nf6 {[%emt 0:01:29]} 7. b4 {[%emt 0:01:29]} Nfd7 {[%emt 0:08:31]} 8. O-O {[%emt 0:03:34]} O-O {[%emt 0:00:06]} 9. Nbd2 {[%emt 0:08:07]} a5 {[%emt 0:04:37]} 10. bxa5 {[%emt 0:10:48]} Rxa5 {[%emt 0:13:39]} 11. Qc2 {[%emt 0:00:14]} Ra8 {[%emt 0:00:47]} 12. Nb3 {[%emt 0:02:00]} e5 {[%emt 0:01:42]} 13. a4 {[%emt 0:04:56]} Re8 {[%emt 0:04:55]} 14. a5 {[%emt 0:08:53]} Na6 {[%emt 0:05:35]} 15. Ba3 {[%emt 0:05:11]} c5 {[%emt 0:05:31]} 16. Rae1 {[%emt 0:04:37]} Qc7 {[%emt 0:05:33]} 17. e3 {[%emt 0:00:34]} dxe3 {[%emt 0:02:57]} 18. Rxe3 {[%emt 0:00:00]} Ndb8 {[%emt 0:00:00]} 19. Ng5 {[%emt 0:09:57]} Nc6 {[%emt 0:10:31]} 20. Ne4 {[%emt 0:00:18]} Nd4 {[%emt 0:08:47]} 21. Nxd4 {[%emt 0:19:54]} cxd4 {[%emt 0:00:08]} 22. Ree1 {[%emt 0:00:02]} Qxa5 {[%emt 0:00:24]} 23. Ra1 {[%emt 0:05:14]} Qc7 {[%emt 0:01:17]} 24. Rab1 {[%emt 0:01:49]} Rd8 {[%emt 0:00:34]} 25. Rb5 {[%emt 0:00:35]} Kh8 {[%emt 0:02:57]} 26. Rfb1 {[%emt 0:00:43]} Qd7 {[%emt 0:00:44]} 27. Rd5 {[%emt 0:01:22]} Qc7 {[%emt 0:00:38]} 28. Nd6 {[%emt 0:01:38]} Kg8 {[%emt 0:00:31]} 29. Nxc8 {[%emt 0:01:19]} Raxc8 1-0

[Event "10th Iberoamericano-ch 2024"]
[Site "Linares"]
[Date "2024.09.26"]
[Round "3.13"]
[White "Domingo Nunez, Alejandro"]
[Black "Fernandez Guillen, Ernesto J."]
[Result "0-1"]
[ECO "A05"]
[WhiteElo "2328"]
[BlackElo "2463"]
[Annotator "RC"]
[PlyCount "93"]
[EventDate "2024.09.25"]
[EventType "swiss"]
[EventCountry "ESP"]
[SourceTitle "playchess.com"]
[Source "ChessBase"]
[SourceQuality "1"]
[TimeControl "5400+30"]

1. Nf3 {[%emt 0:00:20]} Nf6 {[%emt 0:06:18]} 2. g3 {[%emt 0:00:37]} d5 {[%emt 0:00:11]} 3. Bg2 {[%emt 0:00:52]} c5 {[%emt 0:08:08]} 4. O-O {[%emt 0:00:10]} e6 {[%emt 0:02:55]} 5. d4 {[%emt 0:04:56]} cxd4 {[%emt 0:12:50]} 6. Nxd4 {[%emt 0:01:11]} Be7 {[%emt 0:00:08]} 7. c4 {[%emt 0:04:07]} O-O {[%emt 0:00:13]} 8. cxd5 {[%emt 0:00:13]} Nxd5 {[%emt 0:00:38]} 9. e4 {[%emt 0:00:56]} Nb4 {[%emt 0:01:13]} 10. Nc3 {[%emt 0:04:59]} N8c6 {[%emt 0:01:42]} 11. Nxc6 {[%emt 0:19:19]} Nxc6 {[%emt 0:28:16]} 12. Be3 {[%emt 0:08:32]} Qa5 {[%emt 0:12:16]} 13. Qa4 {[%emt 0:28:45]} Qxa4 {[%emt 0:09:11]} 14. Nxa4 {[%emt 0:00:03]} Ne5 {[%emt 0:06:03]} 15. Bd4 {[%emt 0:07:17]} Nc6 {[%emt 0:01:49]} 16. Be3 {[%emt 0:00:05]} Ne5 {[%emt 0:04:14]} 17. Rac1 {[%emt 0:12:03]} Bd7 {[%emt 0:00:37]} 18. Bc5 {[%emt 0:02:54]} Bxc5 {[%emt 0:01:05]} 19. Nxc5 {[%emt 0:00:01]} Bb5 {[%emt 0:00:43]} 20. Rfd1 {[%emt 0:00:24]} b6 {[%emt 0:00:30]} 21. a4 {[%emt 0:02:39]} Be2 {[%emt 0:01:23]} 22. Rd2 {[%emt 0:00:17]} Nf3+ {[%emt 0:00:33]} 23. Bxf3 {[%emt 0:00:02]} Bxf3 {[%emt 0:00:04]} 24. Rc3 {[%emt 0:00:19]} Bh5 {[%emt 0:00:55]} 25. Nd7 {[%emt 0:00:44]} Rfd8 {[%emt 0:00:23]} 26. f3 {[%emt 0:01:03]} f6 {[%emt 0:00:20]} 27. Rcd3 {[%emt 0:00:19]} Rdc8 {[%emt 0:00:03]} 28. Kf2 {[%emt 0:00:49]} Be8 {[%emt 0:00:17]} 29. Rd6 {[%emt 0:00:26]} Kf7 {[%emt 0:00:48]} 30. e5 {[%emt 0:00:11]} Rc7 {[%emt 0:00:58]} 31. exf6 {[%emt 0:00:31]} gxf6 {[%emt 0:00:02]} 32. g4 {[%emt 0:00:42]} h6 {[%emt 0:00:38]} 33. h4 {[%emt 0:00:12]} Ke7 {[%emt 0:00:24]} 34. g5 {[%emt 0:00:42]} hxg5 {[%emt 0:00:06]} 35. hxg5 {[%emt 0:00:04]} Bxd7 {[%emt 0:01:05]} 36. gxf6+ {[%emt 0:00:02]} Ke8 {[%emt 0:00:01]} 37. Ke3 {[%emt 0:00:00]} Rd8 {[%emt 0:00:57]} 38. Kf4 {[%emt 0:01:20]} Kf7 {[%emt 0:00:36]} 39. Ke5 {[%emt 0:00:03]} Rc5+ {[%emt 0:00:14]} 40. Kf4 {[%emt 0:00:12]} Rf5+ {[%emt 0:00:19]} 41. Ke3 {[%emt 0:00:20]} Ke8 {[%emt 0:00:53]} 42. Rh2 {[%emt 0:00:22]} Rxf6 {[%emt 0:00:08]} 43. Rh7 {[%emt 0:00:09]} Rf7 {[%emt 0:00:08]} 44. Rxf7 {[%emt 0:00:38]} Kxf7 {[%emt 0:00:02]} 45. a5 {[%emt 0:00:04]} bxa5 {[%emt 0:00:22]} 46. Ra6 {[%emt 0:00:03]} Ra8 {[%emt 0:00:38]} 47. Kd4 {[%emt 0:01:04]} 0-1

[Event "10th Iberoamericano-ch 2024"]
[Site "Linares"]
[Date "2024.09.26"]
[Round "3.14"]
[White "Vitier Vazquez, Cristian"]
[Black "Lopez Martinez, Josep Manuel"]
[Result "1/2-1/2"]
[ECO "A06"]
[WhiteElo "2344"]
[BlackElo "2448"]
[Annotator "RC"]
[PlyCount "77"]
[EventDate "2024.09.25"]
[EventType "swiss"]
[EventCountry "ESP"]
[SourceTitle "playchess.com"]
[Source "ChessBase"]
[SourceQuality "1"]
[TimeControl "5400+30"]

1. Nf3 {[%emt 0:04:34]} d5 {[%emt 0:03:07]} 2. e3 {[%emt 0:00:12]} Nf6 {[%emt 0:01:00]} 3. c4 {[%emt 0:00:07]} e6 {[%emt 0:01:24]} 4. Nc3 {[%emt 0:00:15]} dxc4 {[%emt 0:01:32]} 5. Bxc4 {[%emt 0:00:16]} c5 {[%emt 0:00:05]} 6. d4 {[%emt 0:00:48]} a6 {[%emt 0:02:22]} 7. O-O {[%emt 0:00:29]} Nc6 {[%emt 0:01:35]} 8. d5 {[%emt 0:05:28]} exd5 {[%emt 0:02:32]} 9. Nxd5 {[%emt 0:00:08]} Nxd5 {[%emt 0:00:09]} 10. Bxd5 {[%emt 0:00:34]} Be7 {[%emt 0:00:07]} 11. Bxc6+ {[%emt 0:03:21]} bxc6 {[%emt 0:00:09]} 12. Qxd8+ {[%emt 0:01:21]} Bxd8 {[%emt 0:00:18]} 13. Bd2 {[%emt 0:12:32]} Bf6 {[%emt 0:00:31]} 14. Bc3 {[%emt 0:03:10]} Bxc3 {[%emt 0:00:34]} 15. bxc3 {[%emt 0:00:02]} Be6 {[%emt 0:00:45]} 16. Ne5 {[%emt 0:01:02]} O-O-O {[%emt 0:00:22]} 17. Nxc6 {[%emt 0:23:29]} Rd2 {[%emt 0:02:02]} 18. Rfb1 {[%emt 0:02:05]} Kc7 {[%emt 0:00:40]} 19. Na5 {[%emt 0:00:14]} Rb8 {[%emt 0:00:23]} 20. Nb3 {[%emt 0:05:31]} Rc2 {[%emt 0:02:11]} 21. Nxc5 {[%emt 0:02:47]} Rxb1+ {[%emt 0:01:18]} 22. Rxb1 {[%emt 0:00:00]} Rxa2 {[%emt 0:00:12]} 23. Nxe6+ {[%emt 0:00:21]} fxe6 {[%emt 0:00:08]} 24. g4 {[%emt 0:01:25]} a5 {[%emt 0:00:21]} 25. Rb5 {[%emt 0:00:50]} a4 {[%emt 0:00:31]} 26. Re5 {[%emt 0:05:47]} a3 {[%emt 0:00:52]} 27. Rxe6 {[%emt 0:00:24]} Rc2 {[%emt 0:02:00]} 28. Ra6 {[%emt 0:00:24]} Rxc3 {[%emt 0:00:04]} 29. Kf1 {[%emt 0:01:35]} Kb7 {[%emt 0:00:07]} 30. Ra4 {[%emt 0:00:13]} Kb6 {[%emt 0:00:05]} 31. Ke1 {[%emt 0:00:14]} Kb5 {[%emt 0:00:07]} 32. Ra8 {[%emt 0:00:23]} Kb4 {[%emt 0:00:36]} 33. Kd2 {[%emt 0:00:20]} Rc7 {[%emt 0:01:42]} 34. Rb8+ {[%emt 0:04:46]} Ka4 {[%emt 0:01:14]} 35. Ra8+ {[%emt 0:00:06]} Kb3 {[%emt 0:00:33]} 36. Rb8+ {[%emt 0:00:06]} Ka4 {[%emt 0:00:45]} 37. Ra8+ {[%emt 0:00:24]} Kb3 {[%emt 0:00:08]} 38. Rb8+ {[%emt 0:00:04]} Ka4 {[%emt 0:00:05]} 39. Ra8+ {[%emt 0:00:03]} 1/2-1/2

[Event "10th Iberoamericano-ch 2024"]
[Site "Linares"]
[Date "2024.09.27"]
[Round "4.1"]
[White "Salinas Herrera, Pablo"]
[Black "Garrido Outon, Alex"]
[Result "0-1"]
[ECO "D35"]
[WhiteElo "2479"]
[BlackElo "2448"]
[Annotator "RC"]
[PlyCount "84"]
[EventDate "2024.09.25"]
[EventType "swiss"]
[EventCountry "ESP"]
[SourceTitle "playchess.com"]
[Source "ChessBase"]
[SourceQuality "1"]
[TimeControl "5400+30"]

1. d4 {[%emt 0:00:07]} d5 {[%emt 0:00:16]} 2. c4 {[%emt 0:01:16]} e6 {[%emt 0:00:21]} 3. Nc3 {[%emt 0:01:11]} Nf6 {[%emt 0:00:11]} 4. cxd5 {[%emt 0:00:04]} exd5 {[%emt 0:00:04]} 5. Bg5 {[%emt 0:00:05]} Bb4 {[%emt 0:04:16]} 6. Nf3 {[%emt 0:05:11]} h6 {[%emt 0:00:49]} 7. Bxf6 {[%emt 0:07:02]} Qxf6 {[%emt 0:00:07]} 8. Qa4+ {[%emt 0:00:02]} Nc6 {[%emt 0:00:10]} 9. e3 {[%emt 0:00:03]} O-O {[%emt 0:01:38]} 10. Be2 {[%emt 0:00:03]} Be6 {[%emt 0:00:26]} 11. O-O {[%emt 0:00:06]} a6 {[%emt 0:00:06]} 12. Rfc1 {[%emt 0:00:05]} Bd6 {[%emt 0:02:15]} 13. Qd1 {[%emt 0:00:06]} Ne7 {[%emt 0:13:29]} 14. Na4 {[%emt 0:04:09]} b6 {[%emt 0:03:04]} 15. b4 {[%emt 0:06:25]} g5 {[%emt 0:02:01]} 16. Nb2 {[%emt 0:00:42]} a5 {[%emt 0:05:27]} 17. b5 {[%emt 0:01:34]} Ng6 {[%emt 0:01:17]} 18. Nd3 {[%emt 0:00:45]} Rae8 {[%emt 0:05:55]} 19. Rc3 {[%emt 0:12:33]} Kg7 {[%emt 0:03:27]} 20. Rac1 {[%emt 0:00:29]} Re7 {[%emt 0:00:47]} 21. Nd2 {[%emt 0:06:18]} h5 {[%emt 0:05:48]} 22. Bxh5 {[%emt 0:02:17]} Rh8 {[%emt 0:00:40]} 23. h3 {[%emt 0:00:16]} Nh4 {[%emt 0:03:19]} 24. Ne5 {[%emt 0:00:56]} Nxg2 {[%emt 0:12:46]} 25. Kxg2 {[%emt 0:00:04]} Qh6 {[%emt 0:00:05]} 26. Bg4 {[%emt 0:01:18]} f5 {[%emt 0:02:59]} 27. Bf3 {[%emt 0:03:46]} g4 {[%emt 0:02:32]} 28. hxg4 {[%emt 0:00:57]} fxg4 {[%emt 0:01:19]} 29. Bxg4 {[%emt 0:08:23]} Bxe5 {[%emt 0:05:17]} 30. dxe5 {[%emt 0:00:51]} Qh2+ {[%emt 0:01:49]} 31. Kf1 {[%emt 0:00:03]} Qh1+ {[%emt 0:00:45]} 32. Ke2 {[%emt 0:00:10]} Bxg4+ {[%emt 0:00:06]} 33. f3 {[%emt 0:00:03]} Qh2+ {[%emt 0:06:49]} 34. Kd3 {[%emt 0:00:04]} Bf5+ {[%emt 0:00:31]} 35. e4 {[%emt 0:00:04]} dxe4+ {[%emt 0:01:31]} 36. fxe4 {[%emt 0:00:04]} Rd7+ {[%emt 0:01:02]} 37. Kc2 {[%emt 0:00:04]} Rxd2+ {[%emt 0:00:22]} 38. Qxd2 {[%emt 0:00:15]} Bxe4+ {[%emt 0:00:04]} 39. Kd1 {[%emt 0:00:51]} Qg1+ {[%emt 0:00:06]} 40. Qe1 {[%emt 0:00:16]} Rd8+ {[%emt 0:00:05]} 41. Ke2 {[%emt 0:00:14]} Qg4+ {[%emt 0:00:04]} 42. Kf2 {[%emt 0:00:24]} Qg2+ {[%emt 0:00:06]} 0-1

[Event "10th Iberoamericano-ch 2024"]
[Site "Linares"]
[Date "2024.09.27"]
[Round "4.2"]
[White "Garcia Ramos, Daniel"]
[Black "Flores Quillas, Diego Saul Rodri"]
[Result "1-0"]
[ECO "B62"]
[WhiteElo "2415"]
[BlackElo "2451"]
[Annotator "RC"]
[PlyCount "71"]
[EventDate "2024.09.25"]
[EventType "swiss"]
[EventCountry "ESP"]
[SourceTitle "playchess.com"]
[Source "ChessBase"]
[SourceQuality "1"]
[TimeControl "5400+30"]

1. e4 {[%emt 0:00:02]} c5 {[%emt 0:11:10]} 2. Nf3 {[%emt 0:00:07]} d6 {[%emt 0:00:03]} 3. d4 {[%emt 0:00:15]} Nf6 {[%emt 0:00:09]} 4. Nc3 {[%emt 0:00:16]} cxd4 {[%emt 0:00:05]} 5. Nxd4 {[%emt 0:00:07]} Nc6 {[%emt 0:00:04]} 6. Bg5 {[%emt 0:00:33]} e6 {[%emt 0:00:06]} 7. Qd3 {[%emt 0:00:39]} Bd7 {[%emt 0:01:33]} 8. Ndb5 {[%emt 0:00:19]} Nb4 {[%emt 0:00:18]} 9. Qd1 {[%emt 0:00:10]} a6 {[%emt 0:05:15]} 10. Bxf6 {[%emt 0:00:25]} gxf6 {[%emt 0:00:16]} 11. a3 {[%emt 0:00:06]} Nxc2+ {[%emt 0:00:36]} 12. Qxc2 {[%emt 0:00:07]} axb5 {[%emt 0:00:03]} 13. Bxb5 {[%emt 0:00:11]} Bc6 {[%emt 0:01:01]} 14. O-O {[%emt 0:01:44]} Be7 {[%emt 0:01:08]} 15. Rad1 {[%emt 0:03:51]} Qb6 {[%emt 0:04:13]} 16. Qe2 {[%emt 0:21:05]} Ra5 {[%emt 0:16:03]} 17. a4 {[%emt 0:03:49]} Bxb5 {[%emt 0:01:22]} 18. axb5 {[%emt 0:02:11]} h5 {[%emt 0:16:49]} 19. Rfe1 {[%emt 0:12:53]} Kf8 {[%emt 0:09:10]} 20. Qc4 {[%emt 0:07:18]} Ra8 {[%emt 0:02:33]} 21. Re3 {[%emt 0:10:02]} Rg8 {[%emt 0:04:07]} 22. Rh3 {[%emt 0:11:31]} Rh8 {[%emt 0:09:49]} 23. b4 {[%emt 0:04:04]} h4 {[%emt 0:01:31]} 24. Rf3 {[%emt 0:05:52]} Rh6 {[%emt 0:04:50]} 25. h3 {[%emt 0:00:37]} Kg7 {[%emt 0:00:47]} 26. Rf4 {[%emt 0:01:00]} Kh8 {[%emt 0:01:36]} 27. Rg4 {[%emt 0:06:53]} Rg8 {[%emt 0:02:11]} 28. Rxg8+ {[%emt 0:00:29]} Kxg8 {[%emt 0:00:04]} 29. Ra1 {[%emt 0:00:27]} Kg7 {[%emt 0:01:06]} 30. Ra8 {[%emt 0:00:42]} d5 {[%emt 0:03:27]} 31. Qc8 {[%emt 0:02:24]} Rh7 {[%emt 0:00:02]} 32. Nxd5 {[%emt 0:03:06]} Qd6 {[%emt 0:01:33]} 33. Qg8+ {[%emt 0:01:10]} Kh6 {[%emt 0:00:02]} 34. Ne3 {[%emt 0:00:15]} Rg7 {[%emt 0:00:51]} 35. Qh8+ {[%emt 0:00:08]} Kg6 {[%emt 0:00:01]} 36. Rg8 {[%emt 0:00:50]} 1-0